[Event "4th Baskent University Open 2019"]
[Site "Ankara"]
[Date "2019.06.21"]
[Round "8"]
[White "Pacher, Milan"]
[Black "Aydincelebi, Kagan"]
[Result "1/2-1/2"]
[ECO "B31"]
[WhiteElo "2434"]
[BlackElo "2258"]
[Annotator "NA"]
[PlyCount "115"]
[EventDate "2019.06.18"]
[EventType "swiss"]
[EventCountry "TUR"]
[SourceTitle "playchess.com"]
[Source "ChessBase"]
[SourceQuality "1"]
[TimeControl "5400+30"]

1. e4 {[%emt 0:01:30]} c5 {[%emt 0:00:30]} 2. Nf3 {[%emt 0:00:00]} Nc6 {[%emt 0:00:30]} 3. Bb5 {[%emt 0:00:00]} g6 {[%emt 0:00:00]} 4. Bxc6 {[%emt 0:00:30]} dxc6 {[%emt 0:00:00]} 5. d3 {[%emt 0:00:30]} Bg7 {[%emt 0:00:00]} 6. Nc3 {[%emt 0:00:00]} Nf6 {[%emt 0:00:00]} 7. Be3 {[%emt 0:00:00]} Nd7 {[%emt 0:02:30]} 8. Qd2 {[%emt 0:00:30]} h6 {[%emt 0:00:30]} 9. O-O {[%emt 0:01:30]} e5 {[%emt 0:00:30]} 10. h3 {[%emt 0:00:30]} Qe7 {[%emt 0:00:30]} 11. a4 {[%emt 0:01:30]} a5 {[%emt 0:01:30]} 12. Nh2 {[%emt 0:01:30]} Nf8 {[%emt 0:01:30]} 13. f4 {[%emt 0:00:30]} exf4 {[%emt 0:00:30]} 14. Rxf4 {[%emt 0:00:00]} Ne6 {[%emt 0:00:30]} 15. Rf2 {[%emt 0:00:00]} Nd4 {[%emt 0:14:30]} 16. Raf1 {[%emt 0:00:30]} Be6 {[%emt 0:00:30]} 17. Ng4 {[%emt 0:02:30]} O-O-O $14 {[%emt 0:13:30]} 18. e5 {[%emt 0:07:30]} Bf5 {[%emt 0:10:30]} 19. Bxh6 {[%emt 0:02:30]} Bxh6 {[%emt 0:23:30]} 20. Nxh6 {[%emt 0:00:30]} Rh7 {[%emt 0:00:30]} 21. Nxf5 {[%emt 0:02:30]} gxf5 {[%emt 0:00:30]} 22. Ne2 {[%emt 0:00:30]} Qxe5 {[%emt 0:02:30]} 23. Nxd4 {[%emt 0:00:30]} Qxd4 {[%emt 0:00:30]} 24. Qxa5 {[%emt 0:00:30]} Rdh8 {[%emt 0:12:12]} 25. Re1 {[%emt 0:03:30]} f6 {[%emt 0:01:23]} 26. c3 {[%emt 0:02:30]} Qxd3 {[%emt 0:00:30]} 27. Qxc5 {[%emt 0:00:30]} Rxh3 {[%emt 0:02:31]} 28. Qxf5+ {[%emt 0:14:30]} Qxf5 {[%emt 0:00:07]} 29. Rxf5 {[%emt 0:00:30]} Rh1+ {[%emt 0:00:30]} 30. Kf2 {[%emt 0:00:30]} Rxe1 {[%emt 0:00:00]} 31. Kxe1 {[%emt 0:00:00]} Rg8 {[%emt 0:00:36]} 32. Kf2 {[%emt 0:00:00]} Rg6 {[%emt 0:00:04]} 33. Kf3 {[%emt 0:00:30]} Kd7 {[%emt 0:00:13]} 34. Rf4 {[%emt 0:00:30]} Ke6 {[%emt 0:02:39]} 35. Rg4 {[%emt 0:00:30]} Rh6 {[%emt 0:00:42]} 36. Rg7 {[%emt 0:00:30]} b5 {[%emt 0:02:54]} 37. a5 {[%emt 0:01:30]} Rh4 {[%emt 0:00:23]} 38. b3 {[%emt 0:02:30]} Rh1 {[%emt 0:00:23]} 39. a6 {[%emt 0:01:30]} Ra1 {[%emt 0:00:30]} 40. a7 {[%emt 0:00:00]} Ke5 {[%emt 0:00:44]} 41. Kg4 {[%emt 0:04:00]} Ke6 {[%emt 0:04:26]} 42. Kh5 {[%emt 0:00:30]} c5 {[%emt 0:00:32]} 43. Kg6 {[%emt 0:00:30]} c4 {[%emt 0:01:37]} 44. bxc4 {[%emt 0:00:30]} bxc4 {[%emt 0:00:30]} 45. g4 {[%emt 0:00:30]} Ra6 {[%emt 0:00:30]} 46. Rb7 {[%emt 0:00:30]} Ke5 {[%emt 0:00:30]} 47. Rc7 {[%emt 0:00:30]} f5+ {[%emt 0:00:30]} 48. Kg5 {[%emt 0:00:30]} fxg4 {[%emt 0:00:30]} 49. Kxg4 {[%emt 0:00:30]} Ra4 {[%emt 0:00:30]} 50. Kg5 {[%emt 0:00:30]} Kd6 {[%emt 0:00:30]} 51. Rh7 {[%emt 0:00:30]} Kc6 {[%emt 0:01:39]} 52. Kf5 {[%emt 0:00:30]} Kb6 {[%emt 0:00:03]} 53. Ke5 {[%emt 0:00:30]} Rxa7 {[%emt 0:00:05]} 54. Rh8 {[%emt 0:00:30]} Rd7 {[%emt 0:00:18]} 55. Rb8+ {[%emt 0:00:30]} Kc5 {[%emt 0:00:30]} 56. Rc8+ {[%emt 0:00:30]} Kb5 {[%emt 0:00:30]} 57. Rb8+ {[%emt 0:00:30]} Kc5 {[%emt 0:00:30]} 58. Rc8+ {[%emt 0:00:00]} 1/2-1/2

[Event "4th Baskent University Open 2019"]
[Site "Ankara"]
[Date "2019.06.21"]
[Round "8"]
[White "Nikcevic, Nebojsa"]
[Black "Gokcek, Kursat Bugra"]
[Result "1-0"]
[ECO "A13"]
[WhiteElo "2420"]
[BlackElo "2127"]
[Annotator "NA"]
[PlyCount "65"]
[EventDate "2019.06.18"]
[EventType "swiss"]
[EventCountry "TUR"]
[SourceTitle "playchess.com"]
[Source "ChessBase"]
[SourceQuality "1"]
[TimeControl "5400+30"]

1. Nf3 {[%emt 0:03:30]} Nf6 {[%emt 0:00:30]} 2. c4 {[%emt 0:00:00]} e6 {[%emt 0:00:30]} 3. g3 {[%emt 0:00:00]} b6 {[%emt 0:00:30]} 4. Bg2 {[%emt 0:00:30]} Ba6 {[%emt 0:00:30]} 5. b3 {[%emt 0:06:30]} Bb7 {[%emt 0:00:30]} 6. Bb2 {[%emt 0:00:30]} Be7 {[%emt 0:00:30]} 7. O-O {[%emt 0:00:30]} O-O {[%emt 0:10:30]} 8. Nc3 {[%emt 0:00:30]} c5 {[%emt 0:07:30]} 9. d4 {[%emt 0:00:30]} cxd4 {[%emt 0:00:30]} 10. Qxd4 {[%emt 0:00:30]} Nc6 {[%emt 0:07:30]} 11. Qf4 {[%emt 0:00:30]} a6 {[%emt 0:02:30]} 12. Rfd1 {[%emt 0:00:30]} Qb8 {[%emt 0:08:30]} 13. Na4 $14 {[%emt 0:00:30]} Qa7 {[%emt 0:12:30]} 14. e4 {[%emt 0:32:30]} d6 {[%emt 0:05:30]} 15. Nc3 {[%emt 0:05:30]} Rad8 {[%emt 0:06:30]} 16. Rd2 {[%emt 0:00:30]} Nd7 {[%emt 0:00:30]} 17. Qe3 {[%emt 0:02:30]} Nde5 {[%emt 0:01:30]} 18. Ne1 {[%emt 0:00:30]} h5 {[%emt 0:13:06]} 19. Nc2 {[%emt 0:05:30]} Ng4 {[%emt 0:02:32]} 20. Qe2 {[%emt 0:00:30]} Qb8 {[%emt 0:02:00]} 21. h3 {[%emt 0:03:30]} Nf6 {[%emt 0:00:04]} 22. f4 {[%emt 0:02:30]} e5 {[%emt 0:04:40]} 23. Nd5 {[%emt 0:00:30]} h4 {[%emt 0:00:39]} 24. g4 {[%emt 0:03:30]} exf4 {[%emt 0:02:15]} 25. Nxf6+ {[%emt 0:02:30]} gxf6 {[%emt 0:00:43]} 26. Rf1 {[%emt 0:00:30]} Rde8 {[%emt 0:01:49]} 27. Qf2 {[%emt 0:03:30]} d5 {[%emt 0:01:26]} 28. exd5 {[%emt 0:00:30]} Bc5 {[%emt 0:00:40]} 29. Nd4 {[%emt 0:00:00]} Ne5 {[%emt 0:00:00]} 30. Qxf4 {[%emt 0:00:00]} b5 {[%emt 0:00:45]} 31. Qxf6 {[%emt 0:01:30]} Ng6 {[%emt 0:01:04]} 32. Kh1 {[%emt 0:00:30]} Re1 {[%emt 0:00:31]} 33. Nc6 {[%emt 0:01:30]} 1-0

[Event "4th Baskent University Open 2019"]
[Site "Ankara"]
[Date "2019.06.21"]
[Round "8"]
[White "Odeev, Handszar"]
[Black "Kizilkus, Akin"]
[Result "1-0"]
[ECO "C06"]
[WhiteElo "2386"]
[BlackElo "2131"]
[Annotator "NA"]
[PlyCount "51"]
[EventDate "2019.06.18"]
[EventType "swiss"]
[EventCountry "TUR"]
[SourceTitle "playchess.com"]
[Source "ChessBase"]
[SourceQuality "1"]
[TimeControl "5400+30"]

1. e4 {[%emt 0:12:30]} e6 {[%emt 0:00:30]} 2. d4 {[%emt 0:00:30]} d5 {[%emt 0:00:00]} 3. Nd2 {[%emt 0:00:30]} Nf6 {[%emt 0:00:00]} 4. e5 {[%emt 0:00:30]} Nfd7 {[%emt 0:00:30]} 5. Bd3 {[%emt 0:00:30]} c5 {[%emt 0:00:00]} 6. c3 {[%emt 0:00:30]} Nc6 {[%emt 0:00:00]} 7. Ngf3 {[%emt 0:01:30]} Be7 {[%emt 0:00:00]} 8. O-O {[%emt 0:16:30]} g5 {[%emt 0:00:00]} 9. dxc5 {[%emt 0:00:30]} Ndxe5 {[%emt 0:00:30]} 10. Bb5 {[%emt 0:04:30]} Bd7 $11 {[%emt 0:11:30]} 11. c4 {[%emt 0:09:30]} Nxf3+ {[%emt 0:03:30]} 12. Nxf3 {[%emt 0:00:30]} dxc4 {[%emt 0:01:30]} 13. Be3 {[%emt 0:17:30]} h6 {[%emt 0:02:30]} 14. Bxc4 {[%emt 0:08:30]} Qc7 {[%emt 0:01:30]} 15. Rb1 {[%emt 0:09:27]} Rd8 {[%emt 0:04:30]} 16. b4 {[%emt 0:01:43]} Bf6 {[%emt 0:09:30]} 17. Nd2 {[%emt 0:03:37]} Be5 {[%emt 0:09:30]} 18. Qh5 {[%emt 0:00:31]} Ke7 {[%emt 0:05:30]} 19. f4 {[%emt 0:03:00]} gxf4 {[%emt 0:02:30]} 20. Ne4 {[%emt 0:00:23]} Rdf8 {[%emt 0:21:30]} 21. Qh4+ {[%emt 0:01:35]} f6 {[%emt 0:00:30]} 22. Bxf4 {[%emt 0:00:49]} Nd4 {[%emt 0:01:30]} 23. Nd6 {[%emt 0:00:31]} Bxf4 {[%emt 0:00:30]} 24. Rxf4 {[%emt 0:00:43]} e5 {[%emt 0:00:30]} 25. Rxd4 {[%emt 0:01:03]} exd4 {[%emt 0:00:30]} 26. Qxd4 {[%emt 0:01:03]} 1-0

[Event "4th Baskent University Open 2019"]
[Site "Ankara"]
[Date "2019.06.21"]
[Round "8"]
[White "Saraci, Nderim"]
[Black "Mohannad, Farhan"]
[Result "1-0"]
[ECO "B08"]
[WhiteElo "2377"]
[BlackElo "2193"]
[Annotator "NA"]
[PlyCount "131"]
[EventDate "2019.06.18"]
[EventType "swiss"]
[EventCountry "TUR"]
[SourceTitle "playchess.com"]
[Source "ChessBase"]
[SourceQuality "1"]
[TimeControl "5400+30"]

1. e4 {[%emt 0:00:30]} g6 {[%emt 0:01:30]} 2. d4 {[%emt 0:00:30]} Bg7 {[%emt 0:00:00]} 3. Nc3 {[%emt 0:00:00]} d6 {[%emt 0:00:00]} 4. Be3 {[%emt 0:01:00]} a6 {[%emt 0:00:00]} 5. Nf3 {[%emt 0:02:30]} Nf6 {[%emt 0:00:00]} 6. h3 {[%emt 0:00:30]} O-O {[%emt 0:00:30]} 7. e5 {[%emt 0:03:30]} Ne8 {[%emt 0:00:30]} 8. Bc4 {[%emt 0:08:30]} Nc6 {[%emt 0:05:30]} 9. Bf4 {[%emt 0:07:30]} Na5 {[%emt 0:00:30]} 10. Be2 {[%emt 0:00:30]} b5 {[%emt 0:07:30]} 11. a3 {[%emt 0:02:30]} Bb7 {[%emt 0:00:30]} 12. O-O {[%emt 0:06:30]} c5 $11 {[%emt 0:02:30]} 13. dxc5 {[%emt 0:10:30]} dxc5 {[%emt 0:00:30]} 14. Qc1 {[%emt 0:01:30]} Qb6 {[%emt 0:07:30]} 15. Qe3 {[%emt 0:02:30]} Qc6 {[%emt 0:06:30]} 16. Bd3 {[%emt 0:07:30]} f5 {[%emt 0:00:30]} 17. exf6 {[%emt 0:04:30]} Nxf6 {[%emt 0:00:30]} 18. Rfe1 {[%emt 0:03:30]} Nd5 {[%emt 0:06:30]} 19. Nxd5 {[%emt 0:00:00]} Qxd5 {[%emt 0:00:00]} 20. Be5 {[%emt 0:01:00]} Bf6 {[%emt 0:13:00]} 21. Be4 {[%emt 0:03:30]} Qxe4 {[%emt 0:00:30]} 22. Qxe4 {[%emt 0:00:30]} Bxe4 {[%emt 0:00:30]} 23. Rxe4 {[%emt 0:02:30]} Bxe5 {[%emt 0:11:30]} 24. Nxe5 {[%emt 0:00:30]} Rad8 {[%emt 0:00:30]} 25. Re2 {[%emt 0:13:20]} Rd6 {[%emt 0:05:30]} 26. Rae1 {[%emt 0:02:42]} c4 {[%emt 0:02:30]} 27. Nf3 {[%emt 0:05:15]} Nc6 {[%emt 0:00:00]} 28. Re4 {[%emt 0:00:21]} Rfd8 {[%emt 0:01:00]} 29. R1e2 {[%emt 0:00:23]} Rd1+ {[%emt 0:03:30]} 30. Kh2 {[%emt 0:00:01]} Rb1 {[%emt 0:00:30]} 31. c3 {[%emt 0:00:16]} Rd6 {[%emt 0:00:30]} 32. h4 {[%emt 0:01:34]} h6 {[%emt 0:01:30]} 33. Ne5 {[%emt 0:00:28]} Nd8 {[%emt 0:03:30]} 34. Nf3 {[%emt 0:02:38]} Nc6 {[%emt 0:00:30]} 35. a4 {[%emt 0:00:13]} Kg7 {[%emt 0:00:30]} 36. axb5 {[%emt 0:00:35]} axb5 {[%emt 0:00:30]} 37. g4 {[%emt 0:00:54]} Rbd1 {[%emt 0:02:00]} 38. Kg2 {[%emt 0:01:51]} R1d5 {[%emt 0:00:12]} 39. Kg3 {[%emt 0:01:28]} Rd3 {[%emt 0:00:47]} 40. Kg2 {[%emt 0:01:02]} R3d5 {[%emt 0:00:10]} 41. Ne5 {[%emt 0:01:05]} Nd8 {[%emt 0:01:29]} 42. Kg3 {[%emt 0:00:43]} Rd1 {[%emt 0:01:54]} 43. Nf3 {[%emt 0:01:37]} Nc6 {[%emt 0:00:07]} 44. g5 {[%emt 0:02:48]} h5 {[%emt 0:00:35]} 45. Nd4 {[%emt 0:00:18]} R1xd4 {[%emt 0:08:08]} 46. cxd4 {[%emt 0:00:07]} Kf7 {[%emt 0:00:00]} 47. Rd2 {[%emt 0:01:01]} Rd5 {[%emt 0:00:20]} 48. f4 {[%emt 0:00:23]} e6 {[%emt 0:00:38]} 49. Kf2 {[%emt 0:00:05]} Nb4 {[%emt 0:02:26]} 50. Re5 {[%emt 0:00:28]} Nc6 {[%emt 0:02:10]} 51. Rxd5 {[%emt 0:00:15]} exd5 {[%emt 0:00:02]} 52. f5 {[%emt 0:01:41]} gxf5 {[%emt 0:00:35]} 53. Ke3 {[%emt 0:00:00]} b4 {[%emt 0:00:00]} 54. Rd1 {[%emt 0:00:19]} b3 {[%emt 0:00:16]} 55. Ra1 {[%emt 0:00:40]} Nb4 {[%emt 0:00:50]} 56. Kd2 {[%emt 0:00:37]} f4 {[%emt 0:01:31]} 57. Rf1 {[%emt 0:00:36]} Nd3 {[%emt 0:00:31]} 58. Rf3 {[%emt 0:00:03]} Nxb2 {[%emt 0:00:42]} 59. Rxf4+ {[%emt 0:00:01]} Kg6 {[%emt 0:00:15]} 60. Rf6+ {[%emt 0:00:30]} Kg7 {[%emt 0:00:00]} 61. Rf5 {[%emt 0:00:02]} Na4 {[%emt 0:04:09]} 62. Rxd5 {[%emt 0:00:06]} Kf7 {[%emt 0:00:18]} 63. Rc5 {[%emt 0:01:10]} b2 {[%emt 0:00:38]} 64. Rb5 {[%emt 0:00:34]} c3+ {[%emt 0:00:43]} 65. Kc2 {[%emt 0:00:04]} Ke6 {[%emt 0:00:01]} 66. Rb4 {[%emt 0:00:11]} 1-0

[Event "4th Baskent University Open 2019"]
[Site "Ankara"]
[Date "2019.06.21"]
[Round "8"]
[White "Koksal, Ege"]
[Black "Iskandarov, Misratdin"]
[Result "1/2-1/2"]
[ECO "A32"]
[WhiteElo "2363"]
[BlackElo "2502"]
[Annotator "ChessBase"]
[PlyCount "81"]
[EventDate "2019.06.18"]
[EventType "swiss"]
[EventCountry "TUR"]
[SourceTitle "playchess.com"]
[Source "ChessBase"]
[SourceQuality "1"]
[TimeControl "5400+30"]

1. d4 {[%emt 0:01:30]} Nf6 {[%emt 0:00:30]} 2. c4 {[%emt 0:00:00]} e6 {[%emt 0:01:30]} 3. Nf3 {[%emt 0:00:00]} c5 {[%emt 0:00:00]} 4. Nc3 {[%emt 0:00:30]} cxd4 {[%emt 0:01:00]} 5. Nxd4 {[%emt 0:00:30]} a6 {[%emt 0:00:30]} 6. g3 {[%emt 0:02:30]} Qc7 {[%emt 0:00:30]} 7. Qa4 {[%emt 0:14:30]} b5 {[%emt 0:06:30]} 8. cxb5 {[%emt 0:00:30]} Bb7 {[%emt 0:00:00]} 9. Nf3 {[%emt 0:00:30]} axb5 {[%emt 0:01:00]} 10. Qxb5 {[%emt 0:00:30]} Ne4 {[%emt 0:03:30]} 11. Qb3 {[%emt 0:06:30]} Nxc3 {[%emt 0:00:30]} 12. Qxc3 {[%emt 0:15:30]} Qb6 {[%emt 0:10:30]} 13. Be3 {[%emt 0:00:30]} Qb5 {[%emt 0:00:30]} 14. Bd2 {[%emt 0:00:00]} Na6 {[%emt 0:02:30]} 15. Bg2 {[%emt 0:07:00]} Rc8 {[%emt 0:11:30]} 16. Qa5 {[%emt 0:09:30]} Qxb2 {[%emt 0:14:30]} 17. O-O {[%emt 0:00:30]} Qa3 {[%emt 0:01:30]} 18. Qb6 {[%emt 0:05:30]} Bc6 {[%emt 0:00:30]} 19. Be3 {[%emt 0:05:30]} Be7 {[%emt 0:05:30]} 20. Ne5 {[%emt 0:08:30]} Bxg2 {[%emt 0:07:30]} 21. Kxg2 {[%emt 0:00:30]} Nb4 {[%emt 0:01:30]} 22. Qb5 {[%emt 0:03:32]} Qa8+ {[%emt 0:02:30]} 23. Kg1 {[%emt 0:00:04]} Qd5 {[%emt 0:00:00]} 24. Qxd5 {[%emt 0:02:09]} Nxd5 {[%emt 0:00:00]} 25. Rfc1 {[%emt 0:01:25]} Ra8 {[%emt 0:00:00]} 26. Bd4 {[%emt 0:00:37]} f6 {[%emt 0:03:00]} 27. Nd3 {[%emt 0:00:09]} Ba3 {[%emt 0:01:30]} 28. Rc4 {[%emt 0:00:22]} Kf7 {[%emt 0:00:30]} 29. e4 {[%emt 0:00:59]} Ne7 {[%emt 0:00:30]} 30. Rc7 {[%emt 0:02:47]} d6 {[%emt 0:09:36]} 31. Rb1 {[%emt 0:04:09]} Ra4 {[%emt 0:03:14]} 32. Rbb7 {[%emt 0:00:17]} Re8 {[%emt 0:00:00]} 33. Bb2 {[%emt 0:00:52]} Bxb2 {[%emt 0:04:19]} 34. Nxb2 {[%emt 0:00:02]} Rxe4 {[%emt 0:00:45]} 35. Nc4 {[%emt 0:00:04]} Rd4 {[%emt 0:00:00]} 36. a4 {[%emt 0:03:52]} e5 {[%emt 0:01:29]} 37. a5 {[%emt 0:01:02]} Ke6 {[%emt 0:00:10]} 38. a6 {[%emt 0:00:43]} Nd5 {[%emt 0:01:22]} 39. Rc6 {[%emt 0:00:44]} Ne7 {[%emt 0:00:14]} 40. Rcc7 {[%emt 0:01:27]} Nd5 {[%emt 0:00:30]} 41. Rc6 {[%emt 0:01:18]} 1/2-1/2

[Event "4th Baskent University Open 2019"]
[Site "Ankara"]
[Date "2019.06.21"]
[Round "8"]
[White "Gunduz, Umut Erdem"]
[Black "Yilmaz, Goktan"]
[Result "0-1"]
[ECO "B94"]
[WhiteElo "2302"]
[BlackElo "2155"]
[Annotator "NA"]
[PlyCount "92"]
[EventDate "2019.06.18"]
[EventType "swiss"]
[EventCountry "TUR"]
[SourceTitle "playchess.com"]
[Source "ChessBase"]
[SourceQuality "1"]
[TimeControl "5400+30"]

1. e4 {[%emt 0:01:30]} c5 {[%emt 0:01:30]} 2. Nf3 {[%emt 0:00:30]} d6 {[%emt 0:00:00]} 3. d4 {[%emt 0:00:30]} cxd4 {[%emt 0:00:00]} 4. Nxd4 {[%emt 0:00:00]} Nf6 {[%emt 0:00:30]} 5. Nc3 {[%emt 0:00:00]} a6 {[%emt 0:00:00]} 6. Bg5 {[%emt 0:00:30]} Nbd7 {[%emt 0:00:00]} 7. Qe2 {[%emt 0:00:00]} Qa5 {[%emt 0:00:00]} 8. f4 {[%emt 0:02:00]} h6 {[%emt 0:00:00]} 9. Bh4 {[%emt 0:00:00]} e5 {[%emt 0:00:30]} 10. fxe5 {[%emt 0:05:00]} dxe5 {[%emt 0:02:30]} 11. Nb3 {[%emt 0:00:30]} Qc7 {[%emt 0:00:00]} 12. O-O-O {[%emt 0:00:30]} Be7 {[%emt 0:12:00]} 13. Qc4 {[%emt 0:10:30]} Qb8 $11 {[%emt 0:07:30]} 14. Bxf6 {[%emt 0:23:30]} Nxf6 {[%emt 0:02:30]} 15. Nd5 {[%emt 0:00:30]} Nxd5 {[%emt 0:01:30]} 16. exd5 {[%emt 0:00:00]} Qd6 {[%emt 0:02:30]} 17. g4 {[%emt 0:04:00]} h5 {[%emt 0:07:30]} 18. gxh5 {[%emt 0:06:30]} Rxh5 {[%emt 0:00:30]} 19. Bg2 {[%emt 0:02:30]} Bf5 {[%emt 0:08:30]} 20. Qe2 {[%emt 0:06:30]} Rh4 {[%emt 0:02:30]} 21. Nd2 {[%emt 0:05:30]} Qg6 {[%emt 0:19:30]} 22. Rde1 {[%emt 0:22:32]} Rc8 {[%emt 0:08:30]} 23. Ne4 {[%emt 0:04:49]} Kf8 {[%emt 0:03:30]} 24. Kb1 {[%emt 0:00:37]} b5 {[%emt 0:00:00]} 25. d6 {[%emt 0:01:48]} Bxd6 {[%emt 0:01:00]} 26. Ka1 {[%emt 0:01:09]} Be7 {[%emt 0:00:30]} 27. Ng3 {[%emt 0:01:23]} Be6 {[%emt 0:02:11]} 28. Be4 {[%emt 0:00:20]} Qg4 {[%emt 0:01:22]} 29. Qd3 {[%emt 0:00:45]} Rd8 {[%emt 0:00:52]} 30. Qe3 {[%emt 0:00:21]} Qf4 {[%emt 0:02:35]} 31. Qb6 {[%emt 0:00:34]} Qd2 {[%emt 0:01:24]} 32. Rhf1 {[%emt 0:01:00]} Rf4 {[%emt 0:00:01]} 33. Bd3 {[%emt 0:00:01]} Kg8 {[%emt 0:03:01]} 34. Ne4 {[%emt 0:00:31]} Qb4 {[%emt 0:01:29]} 35. Rg1 {[%emt 0:00:26]} Qa4 {[%emt 0:01:44]} 36. Nc3 {[%emt 0:00:01]} Qd4 {[%emt 0:00:09]} 37. Qb7 {[%emt 0:00:11]} Bb4 {[%emt 0:01:32]} 38. Ne2 {[%emt 0:00:58]} Qf2 {[%emt 0:03:16]} 39. Rd1 {[%emt 0:00:59]} Rxd3 {[%emt 0:01:50]} 40. Nxf4 {[%emt 0:00:34]} Rxd1+ {[%emt 0:00:25]} 41. Rxd1 {[%emt 0:00:01]} Qxf4 {[%emt 0:01:14]} 42. a3 {[%emt 0:00:53]} Qc4 {[%emt 0:00:49]} 43. Rd8+ {[%emt 0:00:35]} Bf8 {[%emt 0:00:20]} 44. b3 {[%emt 0:00:29]} Qxc2 {[%emt 0:00:14]} 45. Qe7 {[%emt 0:00:31]} Qc3+ {[%emt 0:01:05]} 46. Kb1 {[%emt 0:00:30]} Bf5+ {[%emt 0:00:00]} 0-1

[Event "4th Baskent University Open 2019"]
[Site "Ankara"]
[Date "2019.06.21"]
[Round "8"]
[White "Guseynov, Alihan"]
[Black "Guven, Oguz Kagan"]
[Result "1/2-1/2"]
[ECO "D37"]
[WhiteElo "2274"]
[BlackElo "2095"]
[Annotator "NA"]
[PlyCount "61"]
[EventDate "2019.06.18"]
[EventType "swiss"]
[EventCountry "TUR"]
[SourceTitle "playchess.com"]
[Source "ChessBase"]
[SourceQuality "1"]
[TimeControl "5400+30"]

1. c4 {[%emt 0:00:30]} e6 {[%emt 0:00:30]} 2. Nc3 {[%emt 0:00:00]} d5 {[%emt 0:00:30]} 3. d4 {[%emt 0:00:00]} a6 {[%emt 0:00:00]} 4. cxd5 {[%emt 0:03:30]} exd5 {[%emt 0:00:00]} 5. Nf3 {[%emt 0:00:00]} Nf6 {[%emt 0:00:00]} 6. Bg5 {[%emt 0:00:00]} Be6 {[%emt 0:00:00]} 7. e3 {[%emt 0:04:30]} Nbd7 {[%emt 0:00:30]} 8. Bd3 {[%emt 0:01:30]} Bd6 {[%emt 0:01:30]} 9. O-O {[%emt 0:01:30]} h6 {[%emt 0:00:30]} 10. Bh4 {[%emt 0:00:30]} O-O {[%emt 0:00:30]} 11. Qc2 {[%emt 0:06:30]} c6 {[%emt 0:00:30]} 12. Rab1 {[%emt 0:00:30]} Re8 {[%emt 0:03:30]} 13. Na4 {[%emt 0:06:30]} Qc7 {[%emt 0:03:30]} 14. Bg3 {[%emt 0:04:30]} Ne4 {[%emt 0:02:30]} 15. Bxe4 {[%emt 0:06:30]} dxe4 $15 {[%emt 0:00:30]} 16. Nd2 {[%emt 0:00:00]} Bxa2 {[%emt 0:06:30]} 17. Rbc1 {[%emt 0:01:00]} Bxg3 {[%emt 0:01:30]} 18. hxg3 {[%emt 0:00:30]} Bd5 {[%emt 0:00:00]} 19. Nc3 {[%emt 0:01:30]} Qd6 {[%emt 0:04:00]} 20. Ndxe4 {[%emt 0:01:30]} Bxe4 {[%emt 0:00:30]} 21. Nxe4 {[%emt 0:00:00]} Qg6 {[%emt 0:00:30]} 22. Nc5 {[%emt 0:03:00]} Qxc2 {[%emt 0:00:30]} 23. Rxc2 {[%emt 0:00:30]} Nxc5 {[%emt 0:00:00]} 24. Rxc5 {[%emt 0:00:00]} Rad8 {[%emt 0:00:00]} 25. Kh2 {[%emt 0:09:00]} f6 {[%emt 0:01:30]} 26. g4 {[%emt 0:00:30]} Kf7 {[%emt 0:00:30]} 27. Kg3 {[%emt 0:00:30]} Ke6 {[%emt 0:02:30]} 28. Rfc1 {[%emt 0:10:30]} Rd5 {[%emt 0:01:30]} 29. Kf4 {[%emt 0:00:30]} Rxc5 {[%emt 0:05:30]} 30. Rxc5 {[%emt 0:00:30]} Kd6 {[%emt 0:00:30]} 31. b4 {[%emt 0:06:30]} 1/2-1/2

[Event "4th Baskent University Open 2019"]
[Site "Ankara"]
[Date "2019.06.21"]
[Round "8"]
[White "Gulden, Egemen"]
[Black "Mammadov, Zaur"]
[Result "0-1"]
[ECO "A08"]
[WhiteElo "2120"]
[BlackElo "2428"]
[Annotator "NA"]
[PlyCount "74"]
[EventDate "2019.06.18"]
[EventType "swiss"]
[EventCountry "TUR"]
[SourceTitle "playchess.com"]
[Source "ChessBase"]
[SourceQuality "1"]
[TimeControl "5400+30"]

1. g3 {[%emt 0:01:30]} d5 {[%emt 0:00:30]} 2. Bg2 {[%emt 0:00:00]} Nf6 {[%emt 0:00:30]} 3. d3 {[%emt 0:00:00]} g6 {[%emt 0:00:00]} 4. Nd2 {[%emt 0:00:00]} Bg7 {[%emt 0:00:00]} 5. Ngf3 {[%emt 0:01:00]} c5 {[%emt 0:00:00]} 6. O-O {[%emt 0:00:30]} O-O {[%emt 0:00:00]} 7. e4 {[%emt 0:00:30]} e6 {[%emt 0:00:00]} 8. Re1 {[%emt 0:01:30]} Nc6 {[%emt 0:00:00]} 9. exd5 {[%emt 0:09:30]} exd5 {[%emt 0:00:30]} 10. d4 {[%emt 0:01:30]} cxd4 {[%emt 0:02:30]} 11. Nb3 {[%emt 0:00:30]} Ne4 {[%emt 0:01:30]} 12. Nfxd4 {[%emt 0:03:30]} Qf6 {[%emt 0:09:30]} 13. Be3 {[%emt 0:02:30]} Ne5 {[%emt 0:02:30]} 14. f3 {[%emt 0:04:30]} Nd6 {[%emt 0:01:30]} 15. Bf2 {[%emt 0:03:30]} Ndc4 $14 {[%emt 0:02:30]} 16. Rb1 {[%emt 0:00:30]} a6 {[%emt 0:12:30]} 17. h3 {[%emt 0:03:30]} g5 {[%emt 0:06:30]} 18. a4 {[%emt 0:05:30]} Qh6 {[%emt 0:09:30]} 19. Nc5 {[%emt 0:12:30]} Bxh3 {[%emt 0:01:30]} 20. b3 {[%emt 0:07:30]} Nd6 {[%emt 0:02:30]} 21. Qd2 {[%emt 0:01:30]} Rac8 {[%emt 0:06:30]} 22. b4 {[%emt 0:10:30]} Bxg2 {[%emt 0:05:30]} 23. Kxg2 {[%emt 0:00:30]} Qg6 {[%emt 0:00:00]} 24. Re2 {[%emt 0:04:30]} b6 {[%emt 0:00:00]} 25. Nxa6 {[%emt 0:01:30]} g4 {[%emt 0:00:30]} 26. Rb3 {[%emt 0:04:30]} Qh5 {[%emt 0:09:30]} 27. fxg4 {[%emt 0:07:17]} Nxg4 {[%emt 0:00:30]} 28. Bg1 {[%emt 0:00:00]} Ne4 {[%emt 0:00:00]} 29. Qf4 {[%emt 0:02:54]} Ng5 {[%emt 0:02:00]} 30. Kf1 {[%emt 0:01:56]} Rc4 {[%emt 0:02:30]} 31. Rd3 {[%emt 0:02:48]} Ne6 {[%emt 0:00:30]} 32. Qf5 {[%emt 0:03:03]} Qh3+ {[%emt 0:00:30]} 33. Ke1 {[%emt 0:00:10]} Nxd4 {[%emt 0:00:30]} 34. Bxd4 {[%emt 0:01:23]} Qh1+ {[%emt 0:03:30]} 35. Kd2 {[%emt 0:00:24]} Bh6+ {[%emt 0:00:30]} 36. Be3 {[%emt 0:02:21]} Nxe3 {[%emt 0:00:00]} 37. Rdxe3 {[%emt 0:00:14]} Re8 {[%emt 0:01:00]} 0-1